[Event "Memorial Ukrainian Chess Warriors 2024"]
[Site "Lviv"]
[Date "2024.03.15"]
[Round "5.13"]
[White "Nedilko, Vasily"]
[Black "Frankiv, Oleksandr"]
[Result "1/2-1/2"]
[ECO "D07"]
[WhiteElo "2324"]
[BlackElo "1788"]
[Annotator "TA"]
[PlyCount "224"]
[EventDate "2024.03.06"]
[EventType "swiss"]
[EventCountry "UKR"]
[SourceTitle "playchess.com"]
[Source "ChessBase"]
[SourceQuality "1"]
[TimeControl "600+5"]

{[%evp 102,224,-98,-98,-97,-97,-97,-103,-97,-97,-97,-97,-97,-97,-97,-97,-97,-97,-97,-108,0,-97,-97,-97,-97,-97,-25,-97,-97,-97,-97,-97,-97,-97,-97,-97,-41,-41,-41,-66,-66,-70,-40,-40,-40,-41,-40,-40,-40,-40,-40,-40,-40,-40,-40,-40,-40,-40,-40,-40,-40,-40,-40,-40,-40,-40,-40,-40,-40,-40,-40,-40,-40,-40,-40,-40,-40,-40,-40,-40,-40,-40,-40,-40,-40,-40,-40,-40,-40,-40,-40,-40,-40,-40,-40,-40,-40,-40,-40,-40,-40,-40,-40,-40,-40,-40,-40,-40,-40,-40,-40,-40,-40,-40,-40,-40,-40,-45,-45,-52,-52,-59,-59,-65,0]} 1. d4 {[%emt 0:00:02]} d5 {[%emt 0:00:01]} 2. c4 {[%emt 0:00:01]} Nc6 {[%emt 0:00:00]} 3. cxd5 {[%emt 0:00:18]} Qxd5 {[%emt 0:00:01]} 4. e3 {[%emt 0:00:01]} e5 {[%emt 0:00:01]} 5. Nc3 {[%emt 0:00:03]} Bb4 {[%emt 0:00:01]} 6. a3 {[%emt 0:00:01]} Bxc3+ {[%emt 0:00:07]} 7. bxc3 {[%emt 0:00:02]} exd4 {[%emt 0:00:36] D07: Damengambit (Tschigorin-Verteidigung).} 8. cxd4 {[%emt 0:00:03]} Nf6 {[%emt 0:00:07]} 9. Nf3 {[%emt 0:01:08]} O-O {[%emt 0:00:06]} 10. Be2 {[%emt 0:00:01]} Bg4 {[%emt 0:00:16]} 11. O-O {[%emt 0:00:20]} Rad8 $146 {[%emt 0:01:04]} ({Predecessor:} 11... Ne4 12. Qc2 Rad8 13. h3 Bh5 14. Bc4 Qf5 15. Bd3 Bxf3 16. gxf3 Qg5+ 17. Kh2 Nf6 {½-½ Matyukov,P (2315)-McConnell,G (1998) Titled Tuesday intern op 14th Jun Early blitz 2022 (9)}) 12. Bb2 {[%emt 0:00:47]} Rfe8 {[%emt 0:00:25]} 13. Rc1 {[%emt 0:00:27]} Ne4 {[%emt 0:01:42]} 14. Qa4 {[%emt 0:03:49]} Nd2 {[%emt 0:02:39]} 15. Nxd2 {[%emt 0:00:18]} Bxe2 {[%emt 0:00:01]} 16. Rfe1 {[%emt 0:00:02]} Bb5 {[%emt 0:02:01]} 17. Qb3 {[%emt 0:01:02]} Qxb3 {[%emt 0:01:24]} 18. Nxb3 {[%emt 0:00:01]} b6 {[%emt 0:00:50]} 19. Nd2 {[%emt 0:00:48]} Rd7 {[%emt 0:00:05]} 20. Nf3 {[%emt 0:00:41]} f6 {[%emt 0:00:08]} 21. Rc3 {[%emt 0:00:11]} Na5 {[%emt 0:00:05]} 22. Rec1 {[%emt 0:00:08]} Rc8 {[%emt 0:00:01]} 23. h4 {[%emt 0:00:08]} Nb7 {[%emt 0:00:09]} 24. e4 {[%emt 0:00:46]} c5 {[%emt 0:00:08]} 25. d5 {[%emt 0:00:30]} Nd6 {[%emt 0:00:04]} 26. e5 {[%emt 0:00:15]} fxe5 {[%emt 0:00:06]} 27. Nxe5 {[%emt 0:00:02]} Re7 {[%emt 0:00:02]} 28. Rg3 {[%emt 0:00:13]} Ne4 {[%emt 0:00:06]} 29. Re3 {[%emt 0:00:02]} Nf6 {[%emt 0:00:02]} 30. d6 {[%emt 0:00:06]} Re6 {[%emt 0:00:05]} 31. Rd1 {[%emt 0:00:16]} Rd8 {[%emt 0:00:00]} 32. d7 {[%emt 0:00:04]} Nxd7 {[%emt 0:00:11]} 33. Nxd7 Rxd7 {[%emt 0:00:04]} 34. Rxe6 {[%emt 0:00:08]} Rxd1+ {[%emt 0:00:01]} 35. Kh2 {[%emt 0:00:00]} Kf7 {[%emt 0:00:04]} 36. Re3 {[%emt 0:00:02]} Rd3 {[%emt 0:00:05]} 37. Re5 {[%emt 0:00:03]} g6 {[%emt 0:00:03]} 38. h5 {[%emt 0:00:05]} Rd2 {[%emt 0:00:02]} 39. hxg6+ {[%emt 0:00:07]} hxg6 {[%emt 0:00:01]} 40. Bc1 {[%emt 0:00:02]} Rxf2 {[%emt 0:00:01]} 41. Kg3 {[%emt 0:00:02]} Rf5 {[%emt 0:00:09]} 42. Re1 {[%emt 0:00:03]} Rf1 {[%emt 0:00:07]} 43. Rxf1+ {[%emt 0:00:04]} Bxf1 {[%emt 0:00:01]} 44. Kf2 {[%emt 0:00:01]} Bd3 {[%emt 0:00:02]} 45. Ke3 {[%emt 0:00:01]} Bf5 {[%emt 0:00:05]} 46. Kd2 {[%emt 0:00:05]} Ke6 {[%emt 0:00:01]} 47. Kc3 {[%emt 0:00:01]} Kd5 {[%emt 0:00:01]} 48. Bf4 {[%emt 0:00:02]} b5 {[%emt 0:00:13]} 49. Bc7 {[%emt 0:00:06]} a6 {[%emt 0:00:08]} 50. g3 {[%emt 0:00:02]} Ke4 {[%emt 0:00:21]} 51. Bb6 {[%emt 0:00:07] [#]} c4 {[%emt 0:00:06]} ({Günstiger ist} 51... Kf3 $1 $19 52. Bxc5 Kxg3 53. Bd6+ Kf3) 52. a4 $17 {[%emt 0:00:16]} Kf3 {[%emt 0:00:04]} ({Doch nicht} 52... bxa4 $6 53. Kxc4 Kf3 54. Bc7 $11) 53. Bc7 {[%emt 0:00:01]} Bd7 {[%emt 0:00:07]} ({Natürlich nicht} 53... bxa4 $6 54. Kxc4 Bc2 (54... a5 55. Bd6 $11) 55. Kb4 $11) 54. axb5 {[%emt 0:00:02]} axb5 {[%emt 0:00:03]} 55. Kb4 Ke4 {[%emt 0:00:05]} 56. Kc3 {[%emt 0:00:03]} Kd5 57. Bd8 Kc5 {[%emt 0:00:04]} 58. Be7+ {[%emt 0:00:05]} Kb6 {[%emt 0:00:01]} 59. Bf8 {[%emt 0:00:00]} Ka5 {[%emt 0:00:01]} 60. Be7 {[%emt 0:00:02]} Kb6 {[%emt 0:00:13]} 61. Bf8 $1 {[%emt 0:00:02]} Kc6 {[%emt 0:00:01]} 62. Kd4 {[%emt 0:00:05]} Bf5 {[%emt 0:00:10]} 63. Bb4 {[%emt 0:00:01]} Kd7 {[%emt 0:00:07]} (63... Be6 $17 64. Bc3 Kb6) 64. Kc3 {[%emt 0:00:03]} (64. Kc5 $11) 64... Ke6 $17 {[%emt 0:00:02]} 65. Kd4 {[%emt 0:00:01]} Bd3 {[%emt 0:00:03]} 66. Ba3 {[%emt 0:00:01]} Kf5 {[%emt 0:00:04]} 67. Kc3 {[%emt 0:00:01]} Ke5 {[%emt 0:00:07]} 68. Bf8 {[%emt 0:00:03]} g5 {[%emt 0:00:06]} ({Vorzuziehen ist} 68... Be4 $17) 69. Bg7+ $15 {[%emt 0:00:06]} Ke4 {[%emt 0:00:05]} 70. Bf8 {[%emt 0:00:02]} Kf3 {[%emt 0:00:13]} 71. Bd6 {[%emt 0:00:02]} Kf2 {[%emt 0:00:05]} 72. Kb4 {[%emt 0:00:04]} Be2 {[%emt 0:00:05]} 73. Kc3 {[%emt 0:00:02]} Ke3 {[%emt 0:00:05]} 74. Be7 {[%emt 0:00:11]} g4 {[%emt 0:00:04]} 75. Bd6 {[%emt 0:00:02]} Ke4 {[%emt 0:00:01]} 76. Bf8 {[%emt 0:00:04]} Kd5 {[%emt 0:00:12]} 77. Be7 {[%emt 0:00:04]} Ke5 {[%emt 0:00:01]} 78. Bf8 {[%emt 0:00:02]} Ke4 {[%emt 0:00:01]} 79. Be7 {[%emt 0:00:03]} Kf3 {[%emt 0:00:03]} 80. Bd6 {[%emt 0:00:02]} Bd1 {[%emt 0:00:03]} 81. Kb4 $1 {[%emt 0:00:02]} Ba4 {[%emt 0:00:08]} 82. Kc3 {[%emt 0:00:01]} Bb3 {[%emt 0:00:01]} 83. Kb4 {[%emt 0:00:02]} Bd1 {[%emt 0:00:11]} 84. Kc3 {[%emt 0:00:02]} Be2 {[%emt 0:00:01]} 85. Kb4 {[%emt 0:00:02]} Bd3 {[%emt 0:00:01]} 86. Kc3 {[%emt 0:00:02]} Bg6 {[%emt 0:00:08]} 87. Kb4 {[%emt 0:00:03]} Be8 {[%emt 0:00:00]} 88. Kc3 {[%emt 0:00:01]} Bc6 {[%emt 0:00:01]} 89. Kb4 {[%emt 0:00:02]} Ke4 {[%emt 0:00:03]} 90. Kc3 $1 {[%emt 0:00:02]} Ke3 {[%emt 0:00:04]} 91. Be7 {[%emt 0:00:02]} Kf3 {[%emt 0:00:02]} 92. Bd6 {[%emt 0:00:01]} Ke2 {[%emt 0:00:06]} 93. Be7 {[%emt 0:00:03]} Be4 {[%emt 0:00:00]} 94. Bd6 {[%emt 0:00:00]} Kf3 {[%emt 0:00:13]} 95. Kb4 {[%emt 0:00:00]} Bb7 {[%emt 0:00:04]} 96. Kc3 {[%emt 0:00:00]} Ke4 {[%emt 0:00:01]} 97. Bf8 $1 {[%emt 0:00:00]} Kd5 {[%emt 0:00:01]} 98. Be7 {[%emt 0:00:02]} Bc8 {[%emt 0:00:00]} 99. Bf8 {[%emt 0:00:01]} Bf5 {[%emt 0:00:17]} 100. Be7 {[%emt 0:00:01]} Ke4 {[%emt 0:00:00]} 101. Bf8 {[%emt 0:00:02]} Bd7 {[%emt 0:00:00]} 102. Be7 {[%emt 0:00:02]} Ke3 {[%emt 0:00:04]} 103. Bf8 {[%emt 0:00:05]} Ke2 {[%emt 0:00:01]} 104. Be7 {[%emt 0:00:00]} Bf5 {[%emt 0:00:13]} 105. Bf8 {[%emt 0:00:03]} Bd3 {[%emt 0:00:04]} 106. Bd6 {[%emt 0:00:02]} Kf3 {[%emt 0:00:01]} 107. Kb4 {[%emt 0:00:02]} Ke3 {[%emt 0:00:33]} 108. Kc3 $1 {[%emt 0:00:02]} Be4 {[%emt 0:00:05]} 109. Be7 {[%emt 0:00:06]} Bd5 {[%emt 0:00:08]} 110. Bc5+ {[%emt 0:00:05]} Kf3 {[%emt 0:00:02]} 111. Bd6 {[%emt 0:00:01]} Kf2 {[%emt 0:00:01]} 112. Kb4 {[%emt 0:00:04]} Kf3 (112... Ke3 $15) 1/2-1/2

[Event "Memorial Ukrainian Chess Warriors 2024"]
[Site "Lviv"]
[Date "2024.03.15"]
[Round "5.14"]
[White "Ivanov, Taras"]
[Black "Dovgaliuk, Oleksandr"]
[Result "1-0"]
[ECO "A04"]
[WhiteElo "1831"]
[BlackElo "1936"]
[Annotator "RC"]
[PlyCount "71"]
[EventDate "2024.03.06"]
[EventType "swiss"]
[EventCountry "UKR"]
[SourceTitle "playchess.com"]
[Source "ChessBase"]
[SourceQuality "1"]
[TimeControl "600+5"]

1. Nf3 {[%emt 0:00:03]} e6 {[%emt 0:00:08]} 2. b3 {[%emt 0:00:02]} Be7 {[%emt 0:00:11]} 3. Bb2 {[%emt 0:00:02]} Bf6 {[%emt 0:00:01]} 4. d4 {[%emt 0:00:05]} d5 {[%emt 0:00:01]} 5. e3 {[%emt 0:00:02]} Ne7 {[%emt 0:00:02]} 6. Nbd2 {[%emt 0:00:02]} c5 {[%emt 0:00:04]} 7. Bd3 {[%emt 0:00:09]} Nbc6 {[%emt 0:00:06]} 8. O-O {[%emt 0:00:11]} Ng6 {[%emt 0:00:20]} 9. Qe2 {[%emt 0:00:37]} cxd4 {[%emt 0:00:15]} 10. Bxg6 {[%emt 0:00:46]} hxg6 {[%emt 0:01:09]} 11. exd4 {[%emt 0:00:05]} Bd7 {[%emt 0:00:10]} 12. a4 {[%emt 0:04:18]} Qc7 {[%emt 0:00:08]} 13. h3 {[%emt 0:02:07]} Be7 {[%emt 0:01:31]} 14. Rac1 {[%emt 0:00:17]} Qf4 {[%emt 0:00:31]} 15. Qe3 {[%emt 0:00:56]} Qxe3 {[%emt 0:00:23]} 16. fxe3 {[%emt 0:00:01]} f5 {[%emt 0:00:01]} 17. c4 {[%emt 0:00:53]} g5 {[%emt 0:00:41]} 18. Ne1 {[%emt 0:00:32]} Nb4 {[%emt 0:00:26]} 19. Bc3 {[%emt 0:00:15]} Na2 {[%emt 0:00:03]} 20. Rc2 {[%emt 0:00:01]} Nxc3 {[%emt 0:00:01]} 21. Rxc3 {[%emt 0:00:01]} Bb4 {[%emt 0:00:07]} 22. Rc2 {[%emt 0:00:06]} Bxd2 {[%emt 0:00:03]} 23. Rxd2 {[%emt 0:00:02]} dxc4 {[%emt 0:00:01]} 24. bxc4 {[%emt 0:00:02]} Bxa4 {[%emt 0:00:01]} 25. Nf3 {[%emt 0:00:13]} Rh5 {[%emt 0:01:27]} 26. d5 {[%emt 0:00:15]} g4 {[%emt 0:00:36]} 27. hxg4 {[%emt 0:00:10]} fxg4 {[%emt 0:00:02]} 28. Nd4 {[%emt 0:00:04]} exd5 {[%emt 0:00:05]} 29. Ne6 {[%emt 0:00:01]} Ke7 {[%emt 0:00:13]} 30. Nxg7 {[%emt 0:00:03]} Re5 {[%emt 0:00:25]} 31. cxd5 {[%emt 0:00:04]} Rf8 {[%emt 0:00:14]} 32. d6+ {[%emt 0:00:09]} Kd7 {[%emt 0:00:14]} 33. Rxf8 {[%emt 0:00:01]} Rxe3 {[%emt 0:00:05]} 34. Rf7+ {[%emt 0:00:04]} Kc6 {[%emt 0:00:06]} 35. d7 {[%emt 0:00:03]} g3 {[%emt 0:00:03]} 36. d8=Q {[%emt 0:00:05]} 1-0

[Event "Memorial Ukrainian Chess Warriors 2024"]
[Site "Lviv"]
[Date "2024.03.15"]
[Round "5.15"]
[White "Piddubna, Bozhena"]
[Black "Nakonechnyi, Oleksii"]
[Result "1/2-1/2"]
[ECO "E16"]
[WhiteElo "2132"]
[BlackElo "1756"]
[Annotator "RC"]
[PlyCount "75"]
[EventDate "2024.03.06"]
[EventType "swiss"]
[EventCountry "UKR"]
[SourceTitle "playchess.com"]
[Source "ChessBase"]
[SourceQuality "1"]
[TimeControl "600+5"]

1. d4 {[%emt 0:00:02]} Nf6 {[%emt 0:00:01]} 2. c4 {[%emt 0:00:01]} e6 {[%emt 0:00:00]} 3. Nf3 {[%emt 0:00:01]} b6 {[%emt 0:00:02]} 4. g3 {[%emt 0:00:04]} Bb7 {[%emt 0:00:01]} 5. Bg2 {[%emt 0:00:01]} Bb4+ {[%emt 0:00:01]} 6. Bd2 {[%emt 0:00:03]} Bxd2+ {[%emt 0:00:02]} 7. Nbxd2 {[%emt 0:00:05]} O-O {[%emt 0:00:02]} 8. Qc2 {[%emt 0:00:03]} d6 {[%emt 0:00:03]} 9. O-O {[%emt 0:00:06]} Nbd7 {[%emt 0:00:03]} 10. Rfd1 {[%emt 0:00:29]} Qe7 {[%emt 0:00:03]} 11. Rac1 {[%emt 0:00:02]} e5 {[%emt 0:00:03]} 12. dxe5 {[%emt 0:00:40]} dxe5 {[%emt 0:00:50]} 13. Nxe5 {[%emt 0:02:41]} Bxg2 {[%emt 0:00:23]} 14. Nxd7 {[%emt 0:00:03]} Nxd7 {[%emt 0:00:05]} 15. Kxg2 {[%emt 0:00:05]} Qxe2 {[%emt 0:00:24]} 16. Re1 {[%emt 0:02:34]} Qh5 {[%emt 0:00:11]} 17. Re7 {[%emt 0:00:13]} Rad8 {[%emt 0:00:14]} 18. Nf3 {[%emt 0:00:11]} Rfe8 {[%emt 0:00:27]} 19. Rce1 {[%emt 0:00:24]} Rxe7 {[%emt 0:00:18]} 20. Rxe7 {[%emt 0:00:02]} Qc5 {[%emt 0:00:02]} 21. Qe2 {[%emt 0:00:05]} Kf8 {[%emt 0:00:10]} 22. Re4 {[%emt 0:00:34]} Nf6 {[%emt 0:00:12]} 23. Re5 {[%emt 0:00:01]} Qd6 {[%emt 0:00:07]} 24. h3 {[%emt 0:00:21]} Re8 {[%emt 0:00:12]} 25. Rxe8+ {[%emt 0:00:16]} Nxe8 {[%emt 0:00:02]} 26. Qe4 {[%emt 0:00:17]} h6 {[%emt 0:00:15]} 27. a3 {[%emt 0:00:58]} a5 {[%emt 0:00:08]} 28. Nd4 {[%emt 0:01:08]} Qe7 {[%emt 0:00:31]} 29. Qc6 {[%emt 0:00:34]} Qd6 {[%emt 0:00:19]} 30. Qe4 {[%emt 0:00:05]} Qe7 {[%emt 0:00:01]} 31. Qd5 {[%emt 0:00:12]} Qd6 {[%emt 0:00:12]} 32. Qe4 {[%emt 0:00:01]} Qe7 {[%emt 0:00:01]} 33. Qf3 {[%emt 0:00:08]} Qe5 {[%emt 0:00:21]} 34. Qd3 {[%emt 0:00:16]} Qd6 {[%emt 0:00:12]} 35. Qe4 {[%emt 0:00:03]} Qe7 {[%emt 0:00:01]} 36. Qd5 {[%emt 0:00:04]} Qd6 {[%emt 0:00:02]} 37. Qe4 {[%emt 0:00:01]} Qe7 {[%emt 0:00:00]} 38. Qd5 {[%emt 0:00:06]} 1/2-1/2

[Event "Memorial Ukrainian Chess Warriors 2024"]
[Site "Lviv"]
[Date "2024.03.15"]
[Round "5.16"]
[White "Hychkevych, Vitaliy"]
[Black "Domanskiy, Mykola"]
[Result "0-1"]
[ECO "E20"]
[WhiteElo "1550"]
[BlackElo "2046"]
[Annotator "RC"]
[PlyCount "82"]
[EventDate "2024.03.06"]
[EventType "swiss"]
[EventCountry "UKR"]
[SourceTitle "playchess.com"]
[Source "ChessBase"]
[SourceQuality "1"]
[TimeControl "600+5"]

1. d4 {[%emt 0:00:01]} Nf6 {[%emt 0:00:02]} 2. c4 {[%emt 0:00:01]} e6 {[%emt 0:00:02]} 3. Nc3 {[%emt 0:00:01]} Bb4 {[%emt 0:00:01]} 4. Bd2 {[%emt 0:00:01]} O-O {[%emt 0:00:03]} 5. e3 {[%emt 0:00:01]} d5 {[%emt 0:00:08]} 6. cxd5 {[%emt 0:00:01]} exd5 {[%emt 0:00:02]} 7. Bd3 {[%emt 0:00:02]} b6 {[%emt 0:00:05]} 8. Nge2 {[%emt 0:00:06]} Bb7 {[%emt 0:00:01]} 9. O-O {[%emt 0:00:05]} Nbd7 {[%emt 0:00:02]} 10. Rc1 {[%emt 0:00:12]} a6 {[%emt 0:00:03]} 11. a3 {[%emt 0:00:01]} Bd6 {[%emt 0:00:01]} 12. h3 {[%emt 0:00:05]} Re8 {[%emt 0:00:01]} 13. Bb1 {[%emt 0:00:18]} c5 {[%emt 0:00:27]} 14. f4 {[%emt 0:00:39]} Ne4 {[%emt 0:01:07]} 15. Nxe4 {[%emt 0:00:20]} dxe4 {[%emt 0:00:04]} 16. Bc3 {[%emt 0:00:07]} Nf6 {[%emt 0:00:38]} 17. Ng3 {[%emt 0:00:43]} Nd5 {[%emt 0:00:10]} 18. Re1 {[%emt 0:01:31]} Nxc3 {[%emt 0:00:58]} 19. bxc3 {[%emt 0:00:09]} cxd4 {[%emt 0:00:28]} 20. cxd4 {[%emt 0:00:02]} Bxa3 {[%emt 0:00:07]} 21. Rc2 {[%emt 0:00:14]} Bf8 {[%emt 0:01:19]} 22. Qg4 {[%emt 0:00:32]} a5 {[%emt 0:00:26]} 23. f5 {[%emt 0:00:25]} Kh8 {[%emt 0:01:19]} 24. Rf2 {[%emt 0:00:09]} Be7 {[%emt 0:01:35]} 25. f6 {[%emt 0:00:26]} Bxf6 {[%emt 0:00:08]} 26. Nh5 {[%emt 0:00:00]} Rg8 {[%emt 0:02:05]} 27. Ref1 {[%emt 0:00:37]} a4 {[%emt 0:00:29]} 28. Nxf6 {[%emt 0:00:58]} gxf6 {[%emt 0:00:02]} 29. Qh5 {[%emt 0:00:22]} Qd5 {[%emt 0:00:06]} 30. Rf5 {[%emt 0:00:07]} Qb3 {[%emt 0:00:24]} 31. Rxf6 {[%emt 0:01:14]} Qxe3+ {[%emt 0:00:02]} 32. Kh1 {[%emt 0:00:01]} Ra5 {[%emt 0:00:13]} 33. Qh4 {[%emt 0:00:53]} Qg5 {[%emt 0:00:03]} 34. Qxg5 {[%emt 0:00:49]} Raxg5 {[%emt 0:00:01]} 35. Rxf7 Bd5 {[%emt 0:00:01]} 36. R7f5 {[%emt 0:00:49]} e3 {[%emt 0:00:00]} 37. Rxd5 {[%emt 0:00:53]} Rxd5 {[%emt 0:00:01]} 38. Ba2 {[%emt 0:00:00]} Rxd4 {[%emt 0:00:03]} 39. Bxg8 {[%emt 0:00:01]} Kxg8 {[%emt 0:00:01]} 40. Re1 {[%emt 0:00:07]} Rd3 {[%emt 0:00:10]} 41. g4 {[%emt 0:00:05]} a3 {[%emt 0:00:03]} 0-1

[Event "Memorial Ukrainian Chess Warriors 2024"]
[Site "Lviv"]
[Date "2024.03.15"]
[Round "5.17"]
[White "Hrabinska, Myroslava"]
[Black "Toroptseva, Yevheniia"]
[Result "1-0"]
[ECO "B20"]
[WhiteElo "2177"]
[BlackElo "1923"]
[Annotator "RC"]
[PlyCount "73"]
[EventDate "2024.03.06"]
[EventType "swiss"]
[EventCountry "UKR"]
[SourceTitle "playchess.com"]
[Source "ChessBase"]
[SourceQuality "1"]
[TimeControl "600+5"]

1. e4 {[%emt 0:00:01]} c5 {[%emt 0:00:01]} 2. b4 {[%emt 0:00:01]} cxb4 {[%emt 0:00:02]} 3. a3 {[%emt 0:00:01]} d5 {[%emt 0:00:08]} 4. exd5 {[%emt 0:00:01]} Qxd5 {[%emt 0:00:01]} 5. Nf3 {[%emt 0:00:30]} e5 {[%emt 0:00:04]} 6. Bb2 {[%emt 0:00:05]} Nc6 {[%emt 0:00:04]} 7. c4 {[%emt 0:00:04]} Qe6 {[%emt 0:00:30]} 8. Bd3 {[%emt 0:00:21]} bxa3 {[%emt 0:00:21]} 9. Nxa3 {[%emt 0:00:18]} Bxa3 {[%emt 0:00:27]} 10. Bxa3 {[%emt 0:00:42]} e4 {[%emt 0:00:48]} 11. Ng5 {[%emt 0:01:28]} Qe5 {[%emt 0:00:12]} 12. Nxe4 {[%emt 0:03:16]} f5 {[%emt 0:00:10]} 13. O-O {[%emt 0:00:27]} fxe4 {[%emt 0:00:29]} 14. Bxe4 {[%emt 0:00:03]} Qxe4 {[%emt 0:04:28]} 15. Re1 {[%emt 0:00:02]} Qe6 {[%emt 0:00:08]} 16. d4 {[%emt 0:00:14]} Nce7 {[%emt 0:00:18]} 17. Rxe6 {[%emt 0:00:11]} Bxe6 {[%emt 0:00:01]} 18. d5 {[%emt 0:00:26]} O-O-O {[%emt 0:00:21]} 19. Qa4 {[%emt 0:00:28]} Nxd5 {[%emt 0:00:03]} 20. cxd5 {[%emt 0:00:03]} Bxd5 {[%emt 0:00:09]} 21. Qxa7 {[%emt 0:00:19]} Bc6 {[%emt 0:00:44]} 22. Qa8+ {[%emt 0:00:43]} Kc7 {[%emt 0:00:04]} 23. Qa5+ {[%emt 0:00:02]} Kc8 {[%emt 0:00:11]} 24. Qf5+ {[%emt 0:00:14]} Kb8 {[%emt 0:00:28]} 25. Qe5+ {[%emt 0:00:01]} Kc8 {[%emt 0:00:01]} 26. Qxg7 {[%emt 0:00:06]} Nh6 {[%emt 0:00:14]} 27. Qxh6 {[%emt 0:00:02]} Rhg8 {[%emt 0:00:05]} 28. g3 {[%emt 0:00:04]} Rg6 {[%emt 0:00:44]} 29. Qf4 {[%emt 0:00:05]} Re6 {[%emt 0:00:19]} 30. Bc5 {[%emt 0:00:17]} b5 {[%emt 0:00:32]} 31. Bb6 {[%emt 0:00:08]} Rd7 {[%emt 0:00:17]} 32. Qf8+ {[%emt 0:00:24]} Kb7 {[%emt 0:00:01]} 33. Be3 {[%emt 0:00:03]} Kc7 {[%emt 0:00:16]} 34. h4 {[%emt 0:00:38]} b4 {[%emt 0:00:03]} 35. Qxb4 {[%emt 0:00:03]} Red6 {[%emt 0:00:05]} 36. Bf4 {[%emt 0:00:06]} Kd8 {[%emt 0:00:02]} 37. Bxd6 1-0

[Event "Memorial Ukrainian Chess Warriors 2024"]
[Site "Lviv"]
[Date "2024.03.15"]
[Round "5.18"]
[White "Shykyravyi, Denys"]
[Black "Medvedyk, Vasyl"]
[Result "1-0"]
[ECO "E92"]
[WhiteElo "1805"]
[BlackElo "1957"]
[Annotator "RC"]
[PlyCount "150"]
[EventDate "2024.03.06"]
[EventType "swiss"]
[EventCountry "UKR"]
[SourceTitle "playchess.com"]
[Source "ChessBase"]
[SourceQuality "1"]
[TimeControl "600+5"]

1. d4 {[%emt 0:00:02]} Nf6 {[%emt 0:00:01]} 2. c4 {[%emt 0:00:02]} g6 {[%emt 0:00:02]} 3. Nc3 {[%emt 0:00:02]} Bg7 {[%emt 0:00:01]} 4. e4 {[%emt 0:00:02]} d6 {[%emt 0:00:02]} 5. Nf3 {[%emt 0:00:02]} O-O {[%emt 0:00:04]} 6. Be2 {[%emt 0:00:07]} e5 {[%emt 0:00:13]} 7. d5 {[%emt 0:00:03]} a5 {[%emt 0:00:05]} 8. O-O {[%emt 0:00:03]} Na6 {[%emt 0:00:51]} 9. a3 {[%emt 0:00:04]} Nc5 {[%emt 0:00:29]} 10. Qc2 {[%emt 0:00:09]} Bd7 {[%emt 0:00:23]} 11. Be3 {[%emt 0:00:06]} Ng4 {[%emt 0:00:11]} 12. Bg5 {[%emt 0:01:11]} f6 {[%emt 0:00:27]} 13. Bd2 {[%emt 0:00:03]} f5 {[%emt 0:00:27]} 14. b4 {[%emt 0:00:48]} Nxe4 {[%emt 0:00:08]} 15. Nxe4 {[%emt 0:00:03]} fxe4 {[%emt 0:00:02]} 16. Ne1 {[%emt 0:00:12]} axb4 {[%emt 0:02:30]} 17. Bxb4 {[%emt 0:00:22]} Qh4 {[%emt 0:02:00]} 18. Bxg4 {[%emt 0:00:35]} Qxg4 {[%emt 0:00:01]} 19. c5 {[%emt 0:00:25]} Bb5 {[%emt 0:00:13]} 20. cxd6 {[%emt 0:00:35]} Bxf1 {[%emt 0:00:02]} 21. dxc7 {[%emt 0:00:15]} Bd3 {[%emt 0:00:26]} 22. Qb3 {[%emt 0:00:34]} Rf7 {[%emt 0:00:43]} 23. d6 {[%emt 0:00:12]} Bb5 {[%emt 0:00:12]} 24. Rc1 {[%emt 0:00:26]} Rc8 {[%emt 0:00:37]} 25. Nc2 {[%emt 0:00:29]} Bh6 {[%emt 0:00:01]} 26. Ne3 {[%emt 0:00:39]} Bxe3 {[%emt 0:01:01]} 27. Qxe3 {[%emt 0:00:05]} Qe2 {[%emt 0:00:09]} 28. Qxe2 {[%emt 0:01:03]} Bxe2 {[%emt 0:00:02]} 29. Bc5 {[%emt 0:00:06]} Bb5 {[%emt 0:00:11]} 30. Rb1 {[%emt 0:00:04]} Bc6 {[%emt 0:00:01]} 31. a4 {[%emt 0:00:06]} Kg7 {[%emt 0:00:19]} 32. a5 {[%emt 0:00:02]} Kf6 {[%emt 0:00:04]} 33. Rb6 {[%emt 0:00:08]} Ke6 {[%emt 0:00:36]} 34. a6 {[%emt 0:00:04]} bxa6 {[%emt 0:00:02]} 35. Rxc6 {[%emt 0:00:20]} Kd5 {[%emt 0:00:00]} 36. Rb6 {[%emt 0:00:04]} Kxc5 {[%emt 0:00:17]} 37. Rb8 {[%emt 0:00:02]} Kxd6 {[%emt 0:00:06]} 38. Rxc8 {[%emt 0:00:04]} Rxc7 {[%emt 0:00:01]} 39. Rd8+ {[%emt 0:00:01]} Ke6 {[%emt 0:00:05]} 40. g3 Ra7 41. Re8+ {[%emt 0:00:11]} Kd5 {[%emt 0:00:12]} 42. Rd8+ {[%emt 0:00:01]} Kc4 {[%emt 0:00:01]} 43. Re8 {[%emt 0:00:06]} Kd4 {[%emt 0:00:07]} 44. Rd8+ {[%emt 0:00:00]} Kc4 {[%emt 0:00:09]} 45. Re8 {[%emt 0:00:03]} Kd5 {[%emt 0:00:07]} 46. Rd8+ {[%emt 0:00:01]} Ke6 {[%emt 0:00:02]} 47. Re8+ {[%emt 0:00:02]} Kf6 {[%emt 0:00:01]} 48. Rf8+ {[%emt 0:00:02]} Kg5 {[%emt 0:00:06]} 49. h4+ {[%emt 0:00:04]} Kg4 {[%emt 0:00:02]} 50. Re8 {[%emt 0:00:11]} a5 {[%emt 0:00:01]} 51. Rxe5 {[%emt 0:00:01]} Kf3 {[%emt 0:00:01]} 52. Rc5 {[%emt 0:00:07]} a4 {[%emt 0:00:02]} 53. Rc3+ {[%emt 0:00:01]} Ke2 {[%emt 0:00:08]} 54. Ra3 {[%emt 0:00:02]} Kd2 {[%emt 0:00:02]} 55. Kf1 {[%emt 0:00:01]} Kc2 {[%emt 0:00:01]} 56. Ke2 {[%emt 0:00:04]} Kb2 {[%emt 0:00:01]} 57. Re3 {[%emt 0:00:13]} Re7 {[%emt 0:00:10]} 58. Kd2 {[%emt 0:00:08]} Rd7+ {[%emt 0:00:02]} 59. Ke2 {[%emt 0:00:02]} Rd4 {[%emt 0:00:00]} 60. f3 {[%emt 0:00:09]} exf3+ {[%emt 0:00:02]} 61. Kxf3 {[%emt 0:00:01]} a3 {[%emt 0:00:06]} 62. Re2+ {[%emt 0:00:02]} Kb3 {[%emt 0:00:03]} 63. Re3+ {[%emt 0:00:01]} Kb2 {[%emt 0:00:06]} 64. Re2+ {[%emt 0:00:01]} Kc3 {[%emt 0:00:01]} 65. Ke3 {[%emt 0:00:04]} Rd3+ {[%emt 0:00:03]} 66. Kf4 {[%emt 0:00:02]} Rd2 {[%emt 0:00:02]} 67. Re3+ {[%emt 0:00:04]} Kb2 {[%emt 0:00:01]} 68. Kg5 {[%emt 0:00:15]} a2 {[%emt 0:00:06]} 69. Re1 {[%emt 0:00:01]} a1=Q {[%emt 0:00:04]} 70. Rxa1 {[%emt 0:00:02]} Kxa1 {[%emt 0:00:02]} 71. Kh6 {[%emt 0:00:01]} Rd7 {[%emt 0:00:01]} 72. g4 {[%emt 0:00:01]} Kb2 {[%emt 0:00:02]} 73. g5 {[%emt 0:00:02]} Kc3 {[%emt 0:00:07]} 74. h5 {[%emt 0:00:05]} gxh5 {[%emt 0:00:01]} 75. Kxh5 {[%emt 0:00:02]} Kd4 {[%emt 0:00:04]} 1-0